fUST/lending_fUST_20240111
["ID","MTS","AMOUNT","RATE_DAILY","PERIOD"]
[311113943,1704915041161,-500.0,0.00030684,2]
[311113944,1704915041173,-500.0,0.00030684,2]
[311113945,1704915041184,-500.0,0.00030684,2]
[311113946,1704915041205,-500.0,0.00030684,2]
[311113947,1704915041229,-500.0,0.00030684,2]
[311113948,1704915041240,-500.0,0.00030684,2]
[311113949,1704915041250,-500.0,0.00030684,2]
[311113950,1704915041260,-500.0,0.00030684,2]
[311113951,1704915041271,-500.0,0.00030684,2]
[311113952,1704915041280,-500.0,0.00030684,2]
[311113953,1704915041290,-500.0,0.00030684,2]
[311113954,1704915041302,-500.0,0.00030684,2]
[311113955,1704915041314,-304.98909376,0.00030684,2]
[311113956,1704915041324,-500.0,0.00030684,2]
[311113957,1704915041334,-500.0,0.00030684,2]
[311113958,1704915041343,-213.58238922,0.00030684,2]
[311113959,1704915041352,-509.1764864,0.00030684,2]
[311113960,1704915041363,-500.0,0.00030684,2]
[311113961,1704915041372,-500.0,0.00030684,2]
[311113962,1704915041382,-500.0,0.00030684,2]
[311113963,1704915041392,-500.0,0.00030684,2]
[311113964,1704915041401,-500.0,0.00030684,2]
[311113965,1704915041411,-500.0,0.00030684,2]
[311113966,1704915041420,-500.0,0.00030684,2]
[311113967,1704915041430,-500.0,0.00030684,2]
[311113968,1704915041440,-500.0,0.00030684,2]
[311113969,1704915041450,-500.0,0.00030684,2]
[311113970,1704915041460,-500.0,0.00030684,2]
[311113971,1704915041469,-500.0,0.00030684,2]
[311113972,1704915041479,-500.0,0.00030684,2]
[311113973,1704915041490,-500.0,0.00030684,2]
[311113974,1704915041499,-250.4,0.00030684,2]
[311113975,1704915041509,-500.0,0.00030684,2]
[311113976,1704915041519,-500.0,0.00030684,2]
[311113977,1704915041528,-500.0,0.00030684,2]
[311113978,1704915041538,-500.0,0.00030684,2]
[311113979,1704915041550,-564.67628536,0.00030684,2]
[311113980,1704915041561,-500.0,0.00030684,2]
[311113981,1704915041570,-1261.19,0.00030684,2]
[311113982,1704915041580,-500.0,0.00030684,2]
[311113983,1704915041591,-532.77,0.00030684,2]
[311113984,1704915041600,-1204.32,0.00030684,2]
[311113985,1704915041610,-500.0,0.00030684,2]
[311113986,1704915041619,-853.39,0.00030684,2]
[311113987,1704915041629,-500.0,0.00030684,2]
[311113988,1704915041638,-706.0,0.00030684,2]
[311113989,1704915041648,-500.0,0.00030684,2]
[311113990,1704915041658,-915.59,0.00030684,2]
[311113991,1704915041668,-500.0,0.00030684,2]
[311113992,1704915041678,-500.0,0.00030684,2]
[311113993,1704915041687,-500.0,0.00030684,2]
[311113994,1704915041697,-558.22,0.00030684,2]
[311113995,1704915041708,-4163.86,0.00030684,2]
[311113996,1704915041718,-647.81,0.00030684,2]
[311113997,1704915041728,-500.0,0.00030684,2]
[311113998,1704915041738,-500.0,0.00030684,2]
[311113999,1704915041748,-500.0,0.00030684,2]
[311114000,1704915041757,-500.0,0.00030684,2]
[311114001,1704915041767,-500.0,0.00030684,2]
[311114002,1704915041777,-500.0,0.00030684,2]
[311114003,1704915041786,-500.0,0.00030684,2]
[311114004,1704915041798,-500.0,0.00030684,2]
[311114005,1704915041807,-500.0,0.00030684,2]
[311114006,1704915041817,-500.0,0.00030684,2]
[311114007,1704915041827,-10134.01,0.00030684,2]
[311114008,1704915041837,-523.97,0.00030684,2]
[311114009,1704915041847,-500.0,0.00030684,2]
[311114010,1704915041857,-500.0,0.00030684,2]
[311114011,1704915041867,-305.75,0.00030738,2]
[311114012,1704915041879,-620.15200052,0.00030824,2]
[311114013,1704915041889,-1571.45702421,0.00030887,2]
[311114014,1704915041898,-752.05443301,0.00030887,2]
[311114015,1704915041909,-192.95610999,0.00030887,2]
[311114016,1704915041918,-945.77526577,0.00030887,2]
[311114017,1704915041928,-581.68117818,0.00030887,2]
[311114018,1704915041937,-555.7269108,0.00030887,2]
[311114019,1704915041948,-700.0,0.00030887,2]
[311114020,1704915041958,-511.42226721,0.00030887,2]
[311114021,1704915041968,-151.0,0.00030887,2]
[311114022,1704915041978,-151.0,0.00030887,2]
[311114023,1704915041987,-500.0,0.00030958,2]
[311114024,1704915041997,-500.0,0.00030958,2]
[311114025,1704915042007,-500.0,0.00030958,2]
[311114026,1704915042017,-500.0,0.00030958,2]
[311114027,1704915042026,-500.0,0.00030958,2]
[311114028,1704915042035,-500.0,0.00030958,2]
[311114029,1704915042045,-500.0,0.00030958,2]
[311114030,1704915042055,-500.0,0.00030958,2]
[311114031,1704915042063,-220.86,0.00030958,2]
[311114032,1704915042073,-500.0,0.00030958,2]
[311114033,1704915042083,-500.0,0.00030958,2]
[311114034,1704915042092,-500.0,0.00030958,2]
[311114035,1704915042102,-500.0,0.00030958,2]
[311114036,1704915042112,-500.0,0.00030958,2]
[311114037,1704915042121,-500.0,0.00030958,2]
[311114038,1704915042130,-500.0,0.00030958,2]
[311114039,1704915042140,-500.0,0.00030958,2]
[311114040,1704915042149,-500.0,0.00030958,2]
[311114041,1704915042158,-500.0,0.00030958,2]
[311114042,1704915042167,-500.0,0.00030958,2]
[311114043,1704915042176,-500.0,0.00030958,2]
[311114044,1704915042186,-500.0,0.00030958,2]
[311114045,1704915042195,-500.0,0.00030958,2]
[311114046,1704915042205,-1261.19,0.00030958,2]
[311114047,1704915042214,-346.92,0.00030958,2]
[311114048,1704915042223,-1204.32,0.00030958,2]
[311114049,1704915042233,-533.73436023,0.00030958,2]
[311114050,1704915042242,-853.39,0.00030958,2]
[311114051,1704915042253,-500.0,0.00030958,2]
[311114052,1704915042262,-706.0,0.00030958,2]
[311114053,1704915042271,-915.59,0.00030958,2]
[311114054,1704915042281,-500.0,0.00030958,2]
[311114055,1704915042290,-500.0,0.00030958,2]
[311114056,1704915042301,-558.22,0.00030958,2]
[311114057,1704915042310,-4163.86,0.00030958,2]
[311114058,1704915042320,-647.81,0.00030958,2]
[311114059,1704915042329,-500.0,0.00030958,2]
[311114060,1704915042338,-500.0,0.00030958,2]
[311114061,1704915042348,-500.0,0.00030958,2]
[311114062,1704915042357,-500.0,0.00030958,2]
[311114063,1704915042366,-500.0,0.00030958,2]
[311114064,1704915042375,-500.0,0.00030958,2]
[311114065,1704915042384,-500.0,0.00030958,2]
[311114066,1704915042394,-500.0,0.00030958,2]
[311114067,1704915042403,-500.0,0.00030958,2]
[311114068,1704915042412,-10134.01,0.00030958,2]
[311114069,1704915042421,-523.97,0.00030958,2]
[311114070,1704915042430,-500.0,0.00030958,2]
[311114071,1704915042438,-500.0,0.00030958,2]
[311114072,1704915042447,-96831.5408905,0.00031,4]
[311114073,1704915042456,-1000.0,0.00031,31]
[311114074,1704915042465,-484.07,0.00031,2]
[311114075,1704915042474,-716.11671,0.00031,2]
[311114076,1704915042483,-716.11671,0.00031,2]
[311114077,1704915042491,-151.0,0.00031,2]
[311114078,1704915042500,-151.0,0.00031,2]
[311114079,1704915042509,-5449.342381,0.00031,2]
[311114080,1704915042518,-5449.342381,0.00031,2]
[311114081,1704915042526,-150.90945433,0.00031016,2]
[311114082,1704915042535,-500.0,0.00031232,2]
[311114083,1704915042544,-500.0,0.00031232,2]
[311114084,1704915042554,-500.0,0.00031232,2]
[311114085,1704915042565,-500.0,0.00031232,2]
[311114086,1704915042575,-500.0,0.00031232,2]
[311114087,1704915042584,-500.0,0.00031232,2]
[311114088,1704915042592,-500.0,0.00031232,2]
[311114089,1704915042601,-500.0,0.00031232,2]
[311114090,1704915042609,-500.0,0.00031232,2]
[311114091,1704915042618,-500.0,0.00031232,2]
[311114092,1704915042627,-500.0,0.00031232,2]
[311114093,1704915042635,-500.0,0.00031232,2]
[311114094,1704915042644,-152.83967137,0.00031232,2]
[311114095,1704915042653,-500.0,0.00031232,2]
[311114096,1704915042661,-500.0,0.00031232,2]
[311114097,1704915042670,-500.0,0.00031232,2]
[311114098,1704915042679,-1261.19,0.00031232,2]
[311114099,1704915042688,-1204.32,0.00031232,2]
[311114100,1704915042697,-853.39,0.00031232,2]
[311114101,1704915042706,-500.0,0.00031232,2]
[311114102,1704915042715,-706.0,0.00031232,2]
[311114103,1704915042724,-915.59,0.00031232,2]
[311114104,1704915042734,-500.0,0.00031232,2]
[311114105,1704915042744,-500.0,0.00031232,2]
[311114106,1704915042753,-558.22,0.00031232,2]
[311114107,1704915042762,-4163.86,0.00031232,2]
[311114108,1704915042772,-647.81,0.00031232,2]
[311114109,1704915042781,-500.0,0.00031232,2]
[311114110,1704915042790,-500.0,0.00031232,2]
[311114111,1704915042801,-500.0,0.00031232,2]
[311114112,1704915042810,-500.0,0.00031232,2]
[311114113,1704915042819,-500.0,0.00031232,2]
[311114114,1704915042827,-500.0,0.00031232,2]
[311114115,1704915042836,-500.0,0.00031232,2]
[311114116,1704915042845,-500.0,0.00031232,2]
[311114117,1704915042855,-500.0,0.00031232,2]
[311114118,1704915042863,-10134.01,0.00031232,2]
[311114119,1704915042872,-500.0,0.00031232,2]
[311114120,1704915042881,-523.97,0.00031232,2]
[311114121,1704915042890,-500.0,0.00031232,2]
[311114122,1704915042900,-198.8392595,0.00031239,2]
[311114123,1704915042909,-306.0,0.00031239,2]
[311114124,1704915042918,-153.0,0.00031239,2]
[311114125,1704915042927,-153.0,0.00031239,2]
[311114126,1704915042935,-153.0,0.00031239,2]
[311114127,1704915042945,-3611.97,0.00031473,2]
[311114128,1704915042954,-5000.01,0.00031479,2]
[311114129,1704915042963,-5000.0,0.00031485,2]
[311114130,1704915042971,-5000.0,0.00031491,2]
[311114131,1704915042980,-480.89,0.00031499,2]
[311114132,1704915042989,-3396.25,0.00031503,2]
[311114133,1704915042998,-151.0,0.00031503,2]
[311114134,1704915043007,-151.0,0.00031503,2]
[311114135,1704915043016,-500.0,0.00031506,2]
[311114136,1704915043025,-640.6,0.00031506,2]
[311114137,1704915043034,-500.0,0.00031506,2]
[311114138,1704915043042,-516.84004452,0.00031506,2]
[311114139,1704915043052,-500.0,0.00031506,2]
[311114141,1704915043061,-231.01,0.00031506,2]
[311114143,1704915043071,-500.0,0.00031506,2]
[311114144,1704915043079,-457.61,0.00031506,2]
[311114145,1704915043088,-500.0,0.00031506,2]
[311114146,1704915043097,-500.0,0.00031506,2]
[311114148,1704915043106,-500.0,0.00031506,2]
[311114150,1704915043115,-500.0,0.00031506,2]
[311114152,1704915043124,-500.0,0.00031506,2]
[311114154,1704915043133,-367.35005062,0.00031506,2]
[311114164,1704915043212,-795.25274607,0.00031506,2]
[311114181,1704915043310,-98.58720331,0.00031506,2]
[311114183,1704915043319,-1035.83395935,0.00031506,2]
[311114196,1704915043566,-401.19648256,0.00023288,2]
[311114198,1704915043575,-500.0,0.00023288,2]
[311114200,1704915043584,-500.0,0.00023288,2]
[311114202,1704915043593,-651.69921223,0.00023288,2]
[311114204,1704915043602,-500.0,0.00023288,2]
[311114206,1704915043612,-500.0,0.00023288,2]
[311114208,1704915043621,-481.12672326,0.00023288,2]
[311114210,1704915043630,-500.0,0.00023288,2]
[311114212,1704915043640,-500.0,0.00030136,2]
[311114214,1704915043649,-3864.76,0.00030744,2]
[311114217,1704915043658,-168.48604065,0.00031506,2]
[311114219,1704915043667,-853.39,0.00031506,2]
[311114221,1704915043676,-500.0,0.00031506,2]
[311114223,1704915043685,-706.0,0.00031506,2]
[311114225,1704915043694,-915.59,0.00031506,2]
[311114227,1704915043703,-500.0,0.00031506,2]
[311114229,1704915043712,-500.0,0.00031506,2]
[311114231,1704915043721,-277.78668661,0.00031506,2]
[311114233,1704915043733,-280.43331339,0.00031506,2]
[311114235,1704915043742,-1737.07734186,0.00031506,2]
[311114318,1704915044385,-2426.78265814,0.00031506,2]
[311114320,1704915044394,-647.81,0.00031506,2]
[311114322,1704915044403,-500.0,0.00031506,2]
[311114324,1704915044412,-500.0,0.00031506,2]
[311114326,1704915044421,-500.0,0.00031506,2]
[311114328,1704915044430,-115.20734186,0.00031506,2]
[311114406,1704915045137,-2079.63666476,0.00020105,2]
[311114408,1704915045146,-384.79265814,0.00031506,2]
[311114410,1704915045155,-500.0,0.00031506,2]
[311114412,1704915045165,-500.0,0.00031506,2]
[311114414,1704915045175,-500.0,0.00031506,2]
[311114416,1704915045185,-500.0,0.00031506,2]
[311114418,1704915045195,-500.0,0.00031506,2]
[311114420,1704915045205,-6629.49108177,0.00031506,2]
[311114596,1704915049474,5017.63886717,0.0003,30]
[311114598,1704915374260,1000.0,0.0003,30]
[311114775,1704916238260,-271.96235488,0.00018728,2]
[311114777,1704916238271,-154.8915759,0.00018729,2]
[311114779,1704916238281,-154.8915759,0.00018729,3]
[311114781,1704916238290,-872.56977946,0.00018729,2]
[311114783,1704916238299,-223.71688645,0.00018732,2]
[311114786,1704916238319,-0.17031825,0.00018732,2]
[311114788,1704916238329,-12211.186399,0.00019091,2]
[311114790,1704916238339,-161.4313671,0.00019727,2]
[311114792,1704916238348,-25497.08535064,0.00020004,2]
[311114794,1704916238357,-300.0,0.00020105,2]
[311114796,1704916238366,-1312.98686781,0.00020105,2]
[311114798,1704916238377,-10000.0,0.00021918,2]
[311114800,1704916238386,-166.666666,0.00021918,2]
[311114802,1704916238395,-292.5596664,0.00022,4]
[311114803,1704916238404,-166.666666,0.00022431,2]
[311114805,1704916238413,-166.666666,0.00022944,2]
[311114807,1704916238423,-1194.12289066,0.00023287,2]
[311114810,1704916238432,-973.39849881,0.00023287,2]
[311114812,1704916238441,-166.666666,0.00023456,2]
[311114813,1704916238451,-166.666666,0.00023969,2]
[311114815,1704916238460,-166.666666,0.00024482,2]
[311114817,1704916238469,-525.91402641,0.00026,2]
[311114819,1704916238478,-733.25771754,0.00027,2]
[311114822,1704916238487,-2475.57,0.00028358,3]
[311114823,1704916238497,-2729.76,0.00028358,3]
[311114825,1704916238506,-2274.8,0.00028358,3]
[311114827,1704916238517,-1895.67,0.00028358,3]
[311114829,1704916238526,-23404.16676357,0.00028368,4]
[311114832,1704916238535,-40313.92740943,0.00028368,4]
[311114834,1704916238543,-5000.0,0.00028368,5]
[311114835,1704916238552,-5094.67616126,0.00028368,3]
[311114838,1704916238563,-38971.35615146,0.00028368,3]
[311114840,1704916238572,-5000.0,0.00028368,5]
[311114842,1704916238581,-1273.72223276,0.00028368,3]
[311114844,1704916238590,-500.0,0.00028499,2]
[311114846,1704916238599,-503.99841911,0.00028499,2]
[311114848,1704916238608,-589.97014836,0.00028499,2]
[311114850,1704916238617,-579.46613876,0.00028499,2]
[311114852,1704916238627,-355.17781438,0.00028499,2]
[311114854,1704916238635,-352.39064871,0.00028499,2]
[311114855,1704916238644,-500.0,0.00028499,2]
[311114858,1704916238653,-500.0,0.00028499,2]
[311114859,1704916238662,-9098.22062588,0.000285,4]
[311114861,1704916238671,-2935.97036096,0.000289,2]
[311114863,1704916238680,-620.15209102,0.00029369,2]
[311114865,1704916238689,-154.90705577,0.0003,2]
[311114867,1704916238698,-236.52252731,0.0003,7]
[311114869,1704916238706,-4451.60098697,0.0003,4]
[311114871,1704916238715,-1025.68574779,0.0003,2]
[311114873,1704916238725,-501.0,0.0003,2]
[311114875,1704916238735,-2447.78536801,0.0003,2]
[311114876,1704916238743,-409.80803054,0.0003,2]
[311114877,1704916238752,-639.65046808,0.0003,4]
[311114878,1704916238762,-2664.26132278,0.0003,2]
[311114879,1704916238771,-154.90705577,0.0003,2]
[311114880,1704916238780,-6973.85683356,0.0003,4]
[311114881,1704916238790,-15040.0244209,0.0003,4]
[311114882,1704916238799,-399.65900583,0.0003,4]
[311114883,1704916238809,-463.38099934,0.0003,4]
[311114884,1704916238819,-154.90705577,0.0003,4]
[311114885,1704916238828,-442.92863413,0.00030132,4]
[311114886,1704916238837,-6465.03783278,0.00030133,4]
[311114887,1704916238846,-223.04406995,0.00030133,4]
[311114888,1704916238855,-155.60722897,0.00030133,4]
[311114889,1704916238864,-293867.66600821,0.00030133,4]
[311114890,1704916238873,-36811.04917865,0.00030134,4]
[311114891,1704916238882,-634.83719448,0.00030135,4]
[311114892,1704916238891,-500.0,0.00030136,2]
[311114893,1704916238901,-532.41305287,0.00030136,2]
[311114894,1704916238911,-252.49581214,0.00030136,2]
[311114895,1704916238921,-213.58238922,0.00030136,2]
[311114896,1704916238930,-500.0,0.00030136,2]
[311114897,1704916238939,-500.0,0.00030136,2]
[311114898,1704916238948,-509.1764864,0.00030136,2]
[311114899,1704916238958,-500.0,0.00030136,2]
[311114900,1704916238967,-500.0,0.00030136,2]
[311114901,1704916238976,-500.0,0.00030136,2]
[311114902,1704916238986,-500.0,0.00030136,2]
[311114903,1704916238994,-500.0,0.00030136,2]
[311114904,1704916239004,-500.0,0.00030136,2]
[311114905,1704916239014,-500.0,0.00030136,2]
[311114906,1704916239023,-500.0,0.00030136,2]
[311114907,1704916239033,-500.0,0.00030136,2]
[311114908,1704916239157,-500.0,0.00030136,2]
[311114909,1704916239166,-500.0,0.00030136,2]
[311114910,1704916239175,-500.0,0.00030136,2]
[311114911,1704916239184,-500.0,0.00030136,2]
[311114912,1704916239194,-500.0,0.00030136,2]
[311114913,1704916239203,-324.50945477,0.00030136,2]
[311114914,1704916239212,-500.0,0.00030136,2]
[311114916,1704916239221,-500.0,0.00030136,2]
[311114918,1704916239229,-184.61313306,0.00030136,2]
[311114919,1704916239239,-500.0,0.00030136,2]
[311114920,1704916239247,-331.32533185,0.00030136,2]
[311114921,1704916239258,-162.59639863,0.00030136,2]
[311114922,1704916239268,-500.0,0.00030136,2]
[311114923,1704916239277,-500.0,0.00030136,2]
[311114924,1704916239287,-582.46915338,0.00030136,2]
[311114925,1704916239296,-500.0,0.00030136,2]
[311114926,1704916239304,-500.0,0.00030136,2]
[311114927,1704916239314,-500.0,0.00030136,2]
[311114928,1704916239323,-355.71057563,0.00030136,2]
[311114929,1704916239332,-500.0,0.00030136,2]
[311114930,1704916239342,-500.0,0.00030136,2]
[311114931,1704916239351,-500.0,0.00030136,2]
[311114932,1704916239360,-500.0,0.00030136,2]
[311114933,1704916239370,-500.0,0.00030136,2]
[311114934,1704916239382,-516.20352424,0.00030136,2]
[311114935,1704916239391,-500.0,0.00030136,2]
[311114936,1704916239400,-500.0,0.00030136,2]
[311114937,1704916239410,-500.0,0.00030136,2]
[311114938,1704916239421,-500.0,0.00030136,2]
[311114939,1704916239430,-521.31812588,0.00030136,2]
[311114940,1704916239439,-500.0,0.00030136,2]
[311114941,1704916239448,-500.0,0.00030136,2]
[311114942,1704916239459,-500.0,0.00030136,2]
[311114943,1704916239469,-500.0,0.00030136,2]
[311114944,1704916239478,-500.0,0.00030136,2]
[311114945,1704916239487,-500.0,0.00030136,2]
[311114946,1704916239496,-500.0,0.00030136,2]
[311114947,1704916239505,-500.0,0.00030136,2]
[311114948,1704916239515,-434.68497532,0.00030136,2]
[311114949,1704916239524,-500.0,0.00030136,2]
[311114950,1704916239533,-500.0,0.00030136,2]
[311114951,1704916239542,-500.0,0.00030136,2]
[311114952,1704916239551,-500.0,0.00030136,2]
[311114953,1704916239560,-500.0,0.00030136,2]
[311114954,1704916239570,-500.0,0.00030136,2]
[311114955,1704916239579,-647.31295981,0.00030136,2]
[311114956,1704916239588,-500.0,0.00030136,2]
[311114957,1704916239597,-500.0,0.00030136,2]
[311114958,1704916239606,-614.39682082,0.00030136,2]
[311114959,1704916239615,-500.0,0.00030136,2]
[311114960,1704916239624,-500.0,0.00030136,2]
[311114961,1704916239634,-500.0,0.00030136,2]
[311114962,1704916239643,-500.0,0.00030136,2]
[311114963,1704916239653,-500.0,0.00030136,2]
[311114964,1704916239662,-598.24802421,0.00030136,2]
[311114965,1704916239671,-500.0,0.00030136,2]
[311114966,1704916239680,-500.0,0.00030136,2]
[311114967,1704916239689,-500.0,0.00030136,2]
[311114968,1704916239698,-1639.1127657,0.00030136,2]
[311114969,1704916239711,-1983.29459824,0.00030136,2]
[311115024,1704916243384,-243.0,0.0003,2]
[311115026,1704916243393,-4144.45,0.00030136,2]
[311115064,1704916243821,-1668.67263606,0.00030136,2]
[311115066,1704916243831,-500.0,0.00030136,2]
[311115068,1704916243840,-500.0,0.00030136,2]
[311115070,1704916243849,-1103.96,0.00030136,2]
[311115072,1704916243859,-500.0,0.00030136,2]
[311115073,1704916243868,-500.0,0.00030136,2]
[311115076,1704916243878,-500.0,0.00030136,2]
[311115078,1704916243887,-500.0,0.00030136,2]
[311115080,1704916243896,-500.0,0.00030136,2]
[311115082,1704916243905,-500.0,0.00030136,2]
[311115084,1704916243915,-500.0,0.00030136,2]
[311115086,1704916243924,-500.0,0.00030136,2]
[311115088,1704916243933,-500.0,0.00030136,2]
[311115090,1704916243942,-688.83,0.00030136,2]
[311115092,1704916243951,-284.64,0.00030136,2]
[311115093,1704916243961,-500.0,0.00030136,2]
[311115094,1704916243971,-144.86957998,0.00030136,2]
[311115098,1704916244364,-1159.73042002,0.00030136,2]
[311115099,1704916244373,-500.0,0.00030136,2]
[311115100,1704916244382,-853.39,0.00030136,2]
[311115101,1704916244392,-500.0,0.00030136,2]
[311115102,1704916244401,-500.0,0.00030136,2]
[311115103,1704916244410,-500.0,0.00030136,2]
[311115104,1704916244420,-500.0,0.00030136,2]
[311115105,1704916244429,-500.0,0.00030136,2]
[311115106,1704916244438,-906.46,0.00030136,2]
[311115107,1704916244447,-500.0,0.00030136,2]
[311115108,1704916244457,-500.0,0.00030136,2]
[311115109,1704916244466,-500.0,0.00030136,2]
[311115110,1704916244475,-500.0,0.00030136,2]
[311115111,1704916244484,-500.0,0.00030136,2]
[311115112,1704916244493,-511.7,0.00030136,2]
[311115113,1704916244503,-500.0,0.00030136,2]
[311115114,1704916244512,-593.82,0.00030136,2]
[311115115,1704916244523,-3816.87,0.00030136,2]
[311115116,1704916244532,-500.0,0.00030136,2]
[311115117,1704916244541,-500.0,0.00030136,2]
[311115118,1704916244551,-500.0,0.00030136,2]
[311115119,1704916244561,-500.0,0.00030136,2]
[311115120,1704916244572,-500.0,0.00030136,2]
[311115121,1704916244581,-500.0,0.00030136,2]
[311115122,1704916244590,-500.0,0.00030136,2]
[311115123,1704916244599,-500.0,0.00030136,2]
[311115124,1704916244608,-500.0,0.00030136,2]
[311115125,1704916244617,-500.0,0.00030136,2]
[311115126,1704916244627,-500.0,0.00030136,2]
[311115127,1704916244636,-500.0,0.00030136,2]
[311115128,1704916244645,-500.0,0.00030136,2]
[311115129,1704916244654,-502.14,0.00030136,2]
[311115130,1704916244663,-500.0,0.00030136,2]
[311115131,1704916244672,-5000.0,0.00030137,2]
[311115132,1704916244681,-5000.0,0.00030137,2]
[311115133,1704916244691,-5000.0,0.00030137,2]
[311115134,1704916244700,-3815.04736332,0.00030137,2]
[311115135,1704916244709,-680.95063251,0.000302,3]
[311115136,1704916244717,-500.0,0.0003041,2]
[311115137,1704916244726,-304.98909376,0.0003041,2]
[311115138,1704916244735,-500.0,0.0003041,2]
[311115139,1704916244745,-500.0,0.0003041,2]
[311115140,1704916244754,-500.0,0.0003041,2]
[311115141,1704916244763,-544.4,0.0003041,2]
[311115142,1704916244774,-500.0,0.0003041,2]
[311115143,1704916244783,-500.0,0.0003041,2]
[311115144,1704916244791,-500.0,0.0003041,2]
[311115145,1704916244801,-500.0,0.0003041,2]
[311115146,1704916244810,-256.23986179,0.0003041,2]
[311115147,1704916244819,-500.0,0.0003041,2]
[311115148,1704916244828,-500.0,0.0003041,2]
[311115149,1704916244837,-575.29318989,0.0003041,2]
[311115150,1704916244846,-500.0,0.0003041,2]
[311115151,1704916244855,-500.0,0.0003041,2]
[311115152,1704916244864,-500.0,0.0003041,2]
[311115153,1704916244875,-500.0,0.0003041,2]
[311115154,1704916244884,-185.62363994,0.0003041,2]
[311115155,1704916244893,-500.0,0.0003041,2]
[311115156,1704916244902,-500.0,0.0003041,2]
[311115157,1704916244911,-500.0,0.0003041,2]
[311115158,1704916244921,-500.0,0.0003041,2]
[311115159,1704916244930,-500.0,0.0003041,2]
[311115160,1704916244939,-500.0,0.0003041,2]
[311115161,1704916244948,-500.0,0.0003041,2]
[311115162,1704916244957,-500.0,0.0003041,2]
[311115163,1704916244967,-500.0,0.0003041,2]
[311115164,1704916244976,-500.0,0.0003041,2]
[311115165,1704916244985,-500.0,0.0003041,2]
[311115166,1704916244994,-500.0,0.0003041,2]
[311115167,1704916245002,-500.0,0.0003041,2]
[311115168,1704916245011,-500.0,0.0003041,2]
[311115169,1704916245021,-500.0,0.0003041,2]
[311115170,1704916245029,-500.0,0.0003041,2]
[311115171,1704916245038,-500.0,0.0003041,2]
[311115172,1704916245048,-500.0,0.0003041,2]
[311115173,1704916245057,-500.0,0.0003041,2]
[311115174,1704916245066,-500.0,0.0003041,2]
[311115175,1704916245075,-2268.13318948,0.0003041,2]
[311115486,1704917433366,-154.8915759,0.00019897,3]
[311115488,1704917433376,-404.672001,0.00019898,2]
[311115523,1704917438118,-1171.2746687,0.00019898,2]
[311115525,1704917438127,-158.11687985,0.000199,2]
[311115527,1704917438136,-2130.16604575,0.0002,5]
[311115529,1704917438146,-326.73090334,0.00022999,2]
[311115531,1704917438155,-2093.08732709,0.00023,2]
[311115533,1704917438164,-1785.1187608,0.00023998,2]
[311115535,1704917438177,-177.233085,0.00024572,2]
[311115537,1704917438186,-177.233085,0.00026247,2]
[311115539,1704917438196,-161.431354,0.00026874,2]
[311115541,1704917438205,-733.25771754,0.00027,2]
[311115542,1704917438214,-177.233085,0.00027922,2]
[311115544,1704917438223,-1957.31357397,0.00028036,2]
[311115546,1704917438232,-3346.03811403,0.00028388,3]